[Event "*** Titled Tuesday 3|2 Blitz"]
[Site "Chess.com"]
[Date "2016.06.07"]
[Round "3"]
[White "FCChelsea14"]
[Black "Abrito99"]
[Result "1-0"]
[WhiteElo "2426"]
[BlackElo "2403"]
[TimeControl "180+2"]
[EndTime "11:36:09 PDT"]
[Termination "FCChelsea14 won by checkmate"]

1. d4 {[%clk 0:02:53.7]} 1... Nf6 {[%clk 0:03:00.8]} 2. Nf3 {[%clk 0:02:54.3]}
2... g6 {[%clk 0:03:01.5]} 3. c4 {[%clk 0:02:55.2]} 3... Bg7 {[%clk 0:03:02.6]}
4. Nc3 {[%clk 0:02:56.4]} 4... d6 {[%clk 0:03:04]} 5. e4 {[%clk 0:02:57.6]} 5...
O-O {[%clk 0:03:05.1]} 6. Be2 {[%clk 0:02:58.8]} 6... e5 {[%clk 0:03:05.9]} 7.
Be3 {[%clk 0:02:59.5]} 7... Nc6 {[%clk 0:03:06]} 8. d5 {[%clk 0:03:00.1]} 8...
Ne7 {[%clk 0:03:06.7]} 9. Nd2 {[%clk 0:03:01.3]} 9... Ne8 {[%clk 0:02:58.3]} 10.
f3 {[%clk 0:03:01.5]} 10... f5 {[%clk 0:02:58.7]} 11. Qc2 {[%clk 0:03:02.7]}
11... Kh8 {[%clk 0:02:59.2]} 12. O-O-O {[%clk 0:03:03.7]} 12... Ng8 {[%clk
0:02:58.7]} 13. Kb1 {[%clk 0:03:04.8]} 13... Bh6 {[%clk 0:02:56.2]} 14. Bxh6
{[%clk 0:03:02.8]} 14... Nxh6 {[%clk 0:02:57]} 15. c5 {[%clk 0:03:03.7]} 15...
dxc5 {[%clk 0:02:35.1]} 16. Nc4 {[%clk 0:03:04.7]} 16... Nf7 {[%clk 0:02:35.9]}
17. h4 {[%clk 0:02:53.6]} 17... f4 {[%clk 0:02:28.8]} 18. h5 {[%clk 0:02:53.8]}
18... g5 {[%clk 0:02:28.6]} 19. Na4 {[%clk 0:02:46.3]} 19... b6 {[%clk
0:02:28.6]} 20. Nc3 {[%clk 0:02:45.9]} 20... Ned6 {[%clk 0:02:29.1]} 21. Nxd6
{[%clk 0:02:45]} 21... cxd6 {[%clk 0:02:29.9]} 22. Bb5 {[%clk 0:02:45.6]} 22...
Bd7 {[%clk 0:02:21.3]} 23. Bc6 {[%clk 0:02:45.3]} 23... Rc8 {[%clk 0:02:21.2]}
24. Qa4 {[%clk 0:02:45]} 24... Bxc6 {[%clk 0:01:28.2]} 25. dxc6 {[%clk
0:02:45.6]} 25... Qc7 {[%clk 0:01:29.4]} 26. Nb5 {[%clk 0:02:39.4]} 26... Qxc6
{[%clk 0:01:29.4]} 27. Qc4 {[%clk 0:02:33.8]} 27... Qd7 {[%clk 0:01:19.8]} 28.
Rd2 {[%clk 0:02:28.6]} 28... a6 {[%clk 0:01:20.2]} 29. Nc3 {[%clk 0:02:28.9]}
29... b5 {[%clk 0:01:21]} 30. Qb3 {[%clk 0:02:29.8]} 30... Nd8 {[%clk 0:01:10]}
31. Nd5 {[%clk 0:02:27.4]} 31... Qb7 {[%clk 0:01:06.7]} 32. Nc3 {[%clk
0:02:10.1]} 32... Qd7 {[%clk 0:00:49.3]} 33. Rhd1 {[%clk 0:02:10.9]} 33... Rc6
{[%clk 0:00:50.2]} 34. Qd5 {[%clk 0:02:08.2]} 34... Re8 {[%clk 0:00:41.6]} 35.
g3 {[%clk 0:02:03.7]} 35... Qe6 {[%clk 0:00:38.5]} 36. Qd3 {[%clk 0:02:04.1]}
36... fxg3 {[%clk 0:00:34.5]} 37. Qf1 {[%clk 0:02:04.9]} 37... Rf8 {[%clk
0:00:32.1]} 38. Qg2 {[%clk 0:02:05.9]} 38... b4 {[%clk 0:00:24]} 39. Ne2 {[%clk
0:02:04]} 39... Qf6 {[%clk 0:00:24]} 40. Rd3 {[%clk 0:02:03.9]} 40... Qe7 {[%clk
0:00:24.4]} 41. Nxg3 {[%clk 0:02:03.9]} 41... Ne6 {[%clk 0:00:23.9]} 42. Nf5
{[%clk 0:02:05]} 42... Rxf5 {[%clk 0:00:25.6]} 43. exf5 {[%clk 0:02:05.8]} 43...
Nf4 {[%clk 0:00:27.1]} 44. Qg4 {[%clk 0:01:57.5]} 44... Nxd3 {[%clk 0:00:28.2]}
45. Rxd3 {[%clk 0:01:58.6]} 45... c4 {[%clk 0:00:29.1]} 46. Rd1 {[%clk
0:01:57.2]} 46... Qf6 {[%clk 0:00:28.9]} 47. Qe4 {[%clk 0:01:56.8]} 47... Rc5
{[%clk 0:00:27.4]} 48. Ka1 {[%clk 0:01:52.8]} 48... a5 {[%clk 0:00:22.5]} 49.
Qa8+ {[%clk 0:01:51.1]} 49... Kg7 {[%clk 0:00:23.7]} 50. Qb7+ {[%clk 0:01:49.5]}
50... Kh6 {[%clk 0:00:23.6]} 51. Qb6 {[%clk 0:01:49.9]} 51... c3 {[%clk
0:00:08.6]} 52. Rxd6 {[%clk 0:01:50.5]} 52... Kxh5 {[%clk 0:00:09.8]} 53. Rxf6
{[%clk 0:01:50.6]} 53... c2 {[%clk 0:00:10.7]} 54. Rh6# {[%clk 0:01:51]} 1-0

[Event "*** Titled Tuesday 3|2 Blitz"]
[Site "Chess.com"]
[Date "2016.06.07"]
[Round "3"]
[White "PowerThinking2650"]
[Black "Philofive"]
[Result "1-0"]
[WhiteElo "2203"]
[BlackElo "2335"]
[TimeControl "180+2"]
[EndTime "11:36:12 PDT"]
[Termination "PowerThinking2650 won by resignation"]

1. e4 {[%clk 0:03:01.9]} 1... e6 {[%clk 0:03:00.2]} 2. d4 {[%clk 0:03:02.3]}
2... d5 {[%clk 0:03:01.6]} 3. Nd2 {[%clk 0:03:03.2]} 3... Nf6 {[%clk 0:03:01.9]}
4. e5 {[%clk 0:03:04.1]} 4... Nfd7 {[%clk 0:03:00.8]} 5. Bd3 {[%clk 0:03:05.5]}
5... c5 {[%clk 0:03:02.1]} 6. c3 {[%clk 0:03:07]} 6... Nc6 {[%clk 0:03:03.3]} 7.
Ne2 {[%clk 0:03:08.5]} 7... cxd4 {[%clk 0:03:04.4]} 8. cxd4 {[%clk 0:03:09.9]}
8... f6 {[%clk 0:03:05.7]} 9. exf6 {[%clk 0:03:11.1]} 9... Nxf6 {[%clk 0:03:07]}
10. Nf3 {[%clk 0:03:12.4]} 10... Bd6 {[%clk 0:03:08.3]} 11. O-O {[%clk
0:03:13.5]} 11... Qc7 {[%clk 0:03:08.9]} 12. g3 {[%clk 0:03:14.5]} 12... O-O
{[%clk 0:03:09.4]} 13. Bf4 {[%clk 0:03:15.9]} 13... Ng4 {[%clk 0:03:09.5]} 14.
h3 {[%clk 0:03:03.3]} 14... e5 {[%clk 0:02:41.6]} 15. dxe5 {[%clk 0:02:49.6]}
15... Ngxe5 {[%clk 0:02:38.2]} 16. Ng5 {[%clk 0:02:05]} 16... h6 {[%clk
0:02:18.7]} 17. Bh7+ {[%clk 0:02:04.2]} 17... Kh8 {[%clk 0:02:19]} 18. Nc3
{[%clk 0:02:03.3]} 18... hxg5 {[%clk 0:01:37]} 19. Qh5 {[%clk 0:01:58]} 19... g6
{[%clk 0:01:38]} 20. Bxg6+ {[%clk 0:01:57.2]} 20... Kg8 {[%clk 0:01:39]} 21.
Bxg5 {[%clk 0:01:38.6]} 21... Qg7 {[%clk 0:01:34.2]} 22. f4 {[%clk 0:00:57.5]}
22... Qxg6 {[%clk 0:01:12.9]} 23. Qh4 {[%clk 0:00:52]} 23... Nf7 {[%clk
0:01:04.3]} 24. Nxd5 {[%clk 0:00:51.6]} 24... Nxg5 {[%clk 0:00:56.5]} 25. fxg5
{[%clk 0:00:49.3]} 25... Kg7 {[%clk 0:00:11.8]} 26. Rf6 {[%clk 0:00:41]} 26...
Bc5+ {[%clk 0:00:05.1]} 27. Kh1 {[%clk 0:00:40.4]} 27... Rxf6 {[%clk 0:00:04.9]}
28. gxf6+ {[%clk 0:00:35.6]} 28... Kf7 {[%clk 0:00:05.4]} 29. Re1 {[%clk
0:00:30.2]} 29... Be6 {[%clk 0:00:06.8]} 30. Nf4 {[%clk 0:00:31.1]} 30... Qxf6
{[%clk 0:00:05]} 31. Qh7+ {[%clk 0:00:31.5]} 31... Qg7 {[%clk 0:00:05.6]} 32.
Qh5+ {[%clk 0:00:32.4]} 32... Kf8 {[%clk 0:00:03.9]} 1-0

[Event "*** Titled Tuesday 3|2 Blitz"]
[Site "Chess.com"]
[Date "2016.06.07"]
[Round "3"]
[White "HansCoolNiemann"]
[Black "GM_Levan_Pantsulaia"]
[Result "0-1"]
[WhiteElo "2283"]
[BlackElo "2493"]
[TimeControl "180+2"]
[EndTime "11:36:14 PDT"]
[Termination "GM_Levan_Pantsulaia won by checkmate"]

1. d4 {[%clk 0:03:01.9]} 1... Nf6 {[%clk 0:03:00.3]} 2. c4 {[%clk 0:03:02.6]}
2... c5 {[%clk 0:03:01.5]} 3. d5 {[%clk 0:03:02.8]} 3... e6 {[%clk 0:03:02.8]}
4. Nc3 {[%clk 0:03:03.2]} 4... exd5 {[%clk 0:03:04]} 5. cxd5 {[%clk 0:03:05.1]}
5... d6 {[%clk 0:03:05.4]} 6. Nf3 {[%clk 0:03:05.2]} 6... g6 {[%clk 0:03:06.7]}
7. Bf4 {[%clk 0:03:05.7]} 7... a6 {[%clk 0:03:07]} 8. a4 {[%clk 0:03:05.9]} 8...
Bg7 {[%clk 0:03:07.3]} 9. e3 {[%clk 0:03:07.3]} 9... O-O {[%clk 0:03:04]} 10. h3
{[%clk 0:03:07.8]} 10... Re8 {[%clk 0:03:04.9]} 11. Be2 {[%clk 0:03:04.3]} 11...
Ne4 {[%clk 0:02:59]} 12. Nxe4 {[%clk 0:02:42.6]} 12... Rxe4 {[%clk 0:03:00.1]}
13. Nd2 {[%clk 0:02:41.5]} 13... Rb4 {[%clk 0:02:57.5]} 14. Nc4 {[%clk
0:02:39.4]} 14... Nd7 {[%clk 0:02:57.8]} 15. O-O {[%clk 0:02:30.8]} 15... Nb6
{[%clk 0:02:47.1]} 16. Nxd6 {[%clk 0:02:30.2]} 16... Rxf4 {[%clk 0:02:47.6]} 17.
Nxc8 {[%clk 0:02:29.5]} 17... Rxa4 {[%clk 0:02:47.7]} 18. Rxa4 {[%clk
0:01:20.3]} 18... Nxa4 {[%clk 0:02:48.2]} 19. Qxa4 {[%clk 0:01:13.3]} 19... Rxc8
{[%clk 0:02:48.8]} 20. Rd1 {[%clk 0:01:11.8]} 20... Qd6 {[%clk 0:02:47.1]} 21.
Qc2 {[%clk 0:00:55.8]} 21... c4 {[%clk 0:02:44.5]} 22. e4 {[%clk 0:00:48.4]}
22... b5 {[%clk 0:02:34.5]} 23. g3 {[%clk 0:00:47.2]} 23... h5 {[%clk
0:02:34.4]} 24. h4 {[%clk 0:00:31.3]} 24... Qe5 {[%clk 0:02:30.3]} 25. b3 {[%clk
0:00:26.9]} 25... Qb2 {[%clk 0:02:06.8]} 26. Rc1 {[%clk 0:00:14.1]} 26... Qxc2
{[%clk 0:01:41.6]} 27. Rxc2 {[%clk 0:00:16]} 27... c3 {[%clk 0:01:42.5]} 28. f4
{[%clk 0:00:16.4]} 28... Bd4+ {[%clk 0:01:42.2]} 29. Kg2 {[%clk 0:00:16.7]}
29... Rc5 {[%clk 0:01:38.1]} 30. Kf3 {[%clk 0:00:17.1]} 30... a5 {[%clk
0:01:39.1]} 31. e5 {[%clk 0:00:15.8]} 31... a4 {[%clk 0:01:39.1]} 32. bxa4
{[%clk 0:00:16]} 32... b4 {[%clk 0:01:39.9]} 33. Ke4 {[%clk 0:00:17.9]} 33... b3
{[%clk 0:01:39.3]} 34. Bd3 {[%clk 0:00:11.7]} 34... bxc2 {[%clk 0:01:37.6]} 35.
Bxc2 {[%clk 0:00:13.6]} 35... Bf2 {[%clk 0:01:36.1]} 36. d6 {[%clk 0:00:13.6]}
36... Bxg3 {[%clk 0:01:36.3]} 37. Kd4 {[%clk 0:00:08.7]} 37... Bf2+ {[%clk
0:01:33]} 38. Ke4 {[%clk 0:00:09.1]} 38... Bxh4 {[%clk 0:01:33.9]} 39. Kd4
{[%clk 0:00:06.5]} 39... Bf2+ {[%clk 0:01:33.9]} 40. Ke4 {[%clk 0:00:07.2]}
40... Kf8 {[%clk 0:01:35]} 41. f5 {[%clk 0:00:06.1]} 41... gxf5+ {[%clk
0:01:34.7]} 42. Kxf5 {[%clk 0:00:08]} 42... h4 {[%clk 0:01:33.5]} 43. Kf6 {[%clk
0:00:08.2]} 43... h3 {[%clk 0:01:26.6]} 44. Bb3 {[%clk 0:00:08.6]} 44... Bh4+
{[%clk 0:01:25.5]} 45. Kf5 {[%clk 0:00:07.6]} 45... h2 {[%clk 0:01:26.6]} 46. d7
{[%clk 0:00:06.1]} 46... h1=Q {[%clk 0:01:26.1]} 47. a5 {[%clk 0:00:08]} 47...
Qf3# {[%clk 0:01:24.6]} 0-1

[Event "*** Titled Tuesday 3|2 Blitz"]
[Site "Chess.com"]
[Date "2016.06.07"]
[Round "3"]
[White "INbetweenMOVE"]
[Black "TheLancer"]
[Result "1-0"]
[WhiteElo "2341"]
[BlackElo "2457"]
[TimeControl "180+2"]
[EndTime "11:36:15 PDT"]
[Termination "INbetweenMOVE won by resignation"]

1. d4 {[%clk 0:03:01.7]} 1... Nf6 {[%clk 0:02:55.8]} 2. c4 {[%clk 0:03:02.4]}
2... e6 {[%clk 0:02:55.6]} 3. Nc3 {[%clk 0:03:03.5]} 3... Bb4 {[%clk 0:02:56.5]}
4. Qc2 {[%clk 0:03:04.7]} 4... Nc6 {[%clk 0:02:57.4]} 5. Nf3 {[%clk 0:03:04.7]}
5... d6 {[%clk 0:02:55.2]} 6. Bd2 {[%clk 0:03:06]} 6... O-O {[%clk 0:02:55.2]}
7. a3 {[%clk 0:03:06.5]} 7... Bxc3 {[%clk 0:02:55.8]} 8. Bxc3 {[%clk 0:03:08.4]}
8... Re8 {[%clk 0:02:43.8]} 9. b4 {[%clk 0:03:08.3]} 9... e5 {[%clk 0:02:42.7]}
10. d5 {[%clk 0:02:46.8]} 10... Nb8 {[%clk 0:02:36.5]} 11. e3 {[%clk 0:02:43.8]}
11... a5 {[%clk 0:02:20.5]} 12. Be2 {[%clk 0:02:43.5]} 12... axb4 {[%clk
0:01:59]} 13. axb4 {[%clk 0:02:45.4]} 13... Rxa1+ {[%clk 0:01:59.5]} 14. Bxa1
{[%clk 0:02:46.9]} 14... b5 {[%clk 0:01:54.2]} 15. O-O {[%clk 0:02:44.1]} 15...
bxc4 {[%clk 0:01:54.6]} 16. Bxc4 {[%clk 0:02:46]} 16... Nbd7 {[%clk 0:01:49.1]}
17. Rc1 {[%clk 0:02:24.7]} 17... Nb6 {[%clk 0:01:47.1]} 18. e4 {[%clk
0:02:06.6]} 18... Nh5 {[%clk 0:01:39]} 19. Bb5 {[%clk 0:01:55.9]} 19... Re7
{[%clk 0:01:35.8]} 20. Ne1 {[%clk 0:01:50.7]} 20... f5 {[%clk 0:01:28.9]} 21. f3
{[%clk 0:01:49.4]} 21... Rf7 {[%clk 0:01:25.3]} 22. Bc3 {[%clk 0:01:46.9]} 22...
fxe4 {[%clk 0:01:14.9]} 23. fxe4 {[%clk 0:01:48.8]} 23... Qh4 {[%clk 0:01:15.9]}
24. Nf3 {[%clk 0:01:38.8]} 24... Qg4 {[%clk 0:01:02]} 25. h3 {[%clk 0:01:36.3]}
25... Qg6 {[%clk 0:00:56.5]} 26. Rf1 {[%clk 0:00:57.1]} 26... Bxh3 {[%clk
0:00:38.6]} 27. Be1 {[%clk 0:00:49.2]} 27... Nf4 {[%clk 0:00:27.1]} 28. Nh4
{[%clk 0:00:47.9]} 28... Qg5 {[%clk 0:00:21.1]} 29. Kh2 {[%clk 0:00:36.7]} 29...
Bc8 {[%clk 0:00:20.9]} 30. Bg3 {[%clk 0:00:35.4]} 30... Qg4 {[%clk 0:00:20.2]}
31. Qc3 {[%clk 0:00:17.9]} 31... g5 {[%clk 0:00:20.3]} 32. Nf3 {[%clk
0:00:18.9]} 32... Nh5 {[%clk 0:00:21]} 33. Be1 {[%clk 0:00:18.4]} 33... Qxe4
{[%clk 0:00:22]} 34. Nxg5 {[%clk 0:00:17.9]} 34... Rxf1 {[%clk 0:00:17.7]} 35.
Nxe4 {[%clk 0:00:18.6]} 35... Nf4 {[%clk 0:00:18.3]} 36. Bxf1 {[%clk 0:00:18.8]}
36... Nbxd5 {[%clk 0:00:19.6]} 37. Qg3+ {[%clk 0:00:19.9]} 37... Ng6 {[%clk
0:00:19.8]} 38. Bc4 {[%clk 0:00:20.8]} 38... Be6 {[%clk 0:00:19.8]} 39. Bxd5
{[%clk 0:00:22]} 1-0

[Event "*** Titled Tuesday 3|2 Blitz"]
[Site "Chess.com"]
[Date "2016.06.07"]
[Round "3"]
[White "Zhani-Z"]
[Black "CM_Perligero"]
[Result "1-0"]
[WhiteElo "2219"]
[BlackElo "2069"]
[TimeControl "180+2"]
[EndTime "11:36:16 PDT"]
[Termination "Zhani-Z won by resignation"]

1. e4 {[%clk 0:02:59.5]} 1... e5 {[%clk 0:02:41.4]} 2. Nf3 {[%clk 0:02:59.3]}
2... Nc6 {[%clk 0:02:41.4]} 3. Bc4 {[%clk 0:02:59.9]} 3... Bc5 {[%clk
0:02:40.5]} 4. c3 {[%clk 0:02:54.2]} 4... d6 {[%clk 0:02:40.3]} 5. d4 {[%clk
0:02:48.6]} 5... exd4 {[%clk 0:02:39.1]} 6. cxd4 {[%clk 0:02:49.5]} 6... Bb4+
{[%clk 0:02:39.4]} 7. Nc3 {[%clk 0:02:45.8]} 7... Nf6 {[%clk 0:02:37.2]} 8. O-O
{[%clk 0:02:39]} 8... Bxc3 {[%clk 0:02:37.2]} 9. bxc3 {[%clk 0:02:39.2]} 9...
Nxe4 {[%clk 0:02:33.6]} 10. d5 {[%clk 0:02:19]} 10... Ne7 {[%clk 0:02:23.7]} 11.
Qd4 {[%clk 0:02:11.8]} 11... Nf6 {[%clk 0:02:19.7]} 12. Bg5 {[%clk 0:02:10.3]}
12... Nf5 {[%clk 0:02:16.6]} 13. Rfe1+ {[%clk 0:02:09.5]} 13... Kf8 {[%clk
0:02:14.8]} 14. Qd2 {[%clk 0:01:36.4]} 14... h6 {[%clk 0:02:07.9]} 15. Bf4
{[%clk 0:01:35.3]} 15... g5 {[%clk 0:02:00]} 16. Be3 {[%clk 0:01:36.1]} 16...
Ne4 {[%clk 0:01:51.7]} 17. Qc2 {[%clk 0:01:34.9]} 17... Nxe3 {[%clk 0:01:48.3]}
18. Rxe3 {[%clk 0:01:33.5]} 18... Nf6 {[%clk 0:01:45.3]} 19. Rae1 {[%clk
0:01:26.8]} 19... Kg7 {[%clk 0:01:46]} 20. h4 {[%clk 0:01:22.5]} 20... g4 {[%clk
0:01:28.6]} 21. Nd4 {[%clk 0:01:22.7]} 21... Bd7 {[%clk 0:01:11.6]} 22. Qd2
{[%clk 0:00:51.9]} 22... Qc8 {[%clk 0:00:52.1]} 23. Re7 {[%clk 0:00:50.2]} 23...
Bf5 {[%clk 0:00:45.3]} 24. Qf4 {[%clk 0:00:48.6]} 24... Bg6 {[%clk 0:00:39.7]}
25. Ne6+ {[%clk 0:00:46.7]} 25... Kg8 {[%clk 0:00:18.7]} 26. Qxf6 {[%clk
0:00:47.2]} 26... Rh7 {[%clk 0:00:19.4]} 27. Nxc7 {[%clk 0:00:43.4]} 27... Rg7
{[%clk 0:00:14.4]} 1-0

[Event "*** Titled Tuesday 3|2 Blitz"]
[Site "Chess.com"]
[Date "2016.06.07"]
[Round "3"]
[White "Penguininja"]
[Black "Winehouse83"]
[Result "1/2-1/2"]
[WhiteElo "2220"]
[BlackElo "2458"]
[TimeControl "180+2"]
[EndTime "11:36:39 PDT"]
[Termination "Game drawn by repetition"]

1. d4 {[%clk 0:03:01.9]} 1... Nf6 {[%clk 0:03:00.1]} 2. Nf3 {[%clk 0:02:52.9]}
2... d5 {[%clk 0:03:00.5]} 3. c4 {[%clk 0:02:48.1]} 3... c6 {[%clk 0:03:01.4]}
4. e3 {[%clk 0:02:48]} 4... Bf5 {[%clk 0:03:01.3]} 5. Nc3 {[%clk 0:02:49.2]}
5... e6 {[%clk 0:02:55.7]} 6. Nh4 {[%clk 0:02:50.3]} 6... Be4 {[%clk 0:02:56.3]}
7. f3 {[%clk 0:02:49.4]} 7... Bg6 {[%clk 0:02:57.2]} 8. Qb3 {[%clk 0:02:50.9]}
8... Qb6 {[%clk 0:02:49.9]} 9. c5 {[%clk 0:02:30.4]} 9... Qc7 {[%clk 0:02:49.1]}
10. Nxg6 {[%clk 0:02:28]} 10... hxg6 {[%clk 0:02:49.4]} 11. Bd2 {[%clk
0:02:13.1]} 11... Nbd7 {[%clk 0:02:41.3]} 12. O-O-O {[%clk 0:01:46.5]} 12...
O-O-O {[%clk 0:02:37]} 13. g3 {[%clk 0:01:25.3]} 13... b6 {[%clk 0:02:30.8]} 14.
Kb1 {[%clk 0:01:13.3]} 14... Kb7 {[%clk 0:02:17]} 15. Rc1 {[%clk 0:01:11.7]}
15... Ka8 {[%clk 0:01:59.6]} 16. cxb6 {[%clk 0:00:50.5]} 16... Qxb6 {[%clk
0:01:54.4]} 17. Qc2 {[%clk 0:00:38.5]} 17... Rc8 {[%clk 0:01:48.9]} 18. Na4
{[%clk 0:00:38.6]} 18... Qb7 {[%clk 0:01:48.8]} 19. Bd3 {[%clk 0:00:30.8]} 19...
Bb4 {[%clk 0:01:48.2]} 20. Ka1 {[%clk 0:00:29.1]} 20... Rc7 {[%clk 0:01:45.5]}
21. Ba6 {[%clk 0:00:18.4]} 21... Qb8 {[%clk 0:01:44]} 22. Bxb4 {[%clk 0:00:19]}
22... Qxb4 {[%clk 0:01:44.4]} 23. a3 {[%clk 0:00:20.1]} 23... Qa5 {[%clk
0:01:39.5]} 24. Bd3 {[%clk 0:00:18.9]} 24... Rb8 {[%clk 0:01:39]} 25. Nc5 {[%clk
0:00:18.6]} 25... Nxc5 {[%clk 0:01:39.6]} 26. Qxc5 {[%clk 0:00:18.9]} 26... Qxc5
{[%clk 0:01:40.5]} 27. Rxc5 {[%clk 0:00:20.5]} 27... Nd7 {[%clk 0:01:41.7]} 28.
Rc3 {[%clk 0:00:20.8]} 28... c5 {[%clk 0:01:42.5]} 29. dxc5 {[%clk 0:00:22.2]}
29... Nxc5 {[%clk 0:01:37.4]} 30. Bc2 {[%clk 0:00:20.5]} 30... Rbc8 {[%clk
0:01:36.1]} 31. Rc1 {[%clk 0:00:17.9]} 31... Nd7 {[%clk 0:01:35.4]} 32. Rxc7
{[%clk 0:00:18]} 32... Rxc7 {[%clk 0:01:37.3]} 33. Kb1 {[%clk 0:00:19.6]} 33...
Ne5 {[%clk 0:01:38.1]} 34. Bd1 {[%clk 0:00:19.8]} 34... Nc4 {[%clk 0:01:37.1]}
35. Rc3 {[%clk 0:00:14.7]} 35... Kb7 {[%clk 0:01:38.2]} 36. Be2 {[%clk
0:00:15.2]} 36... Nd6 {[%clk 0:01:36.2]} 37. Kc2 {[%clk 0:00:16.1]} 37... Nf5
{[%clk 0:01:32.9]} 38. Rxc7+ {[%clk 0:00:12.8]} 38... Kxc7 {[%clk 0:01:34.8]}
39. Kd3 {[%clk 0:00:13.5]} 39... e5 {[%clk 0:01:32.9]} 40. e4 {[%clk 0:00:12.8]}
40... dxe4+ {[%clk 0:01:32.8]} 41. fxe4 {[%clk 0:00:14.5]} 41... Nd4 {[%clk
0:01:33.9]} 42. Bd1 {[%clk 0:00:15.7]} 42... Kd6 {[%clk 0:01:30.8]} 43. g4
{[%clk 0:00:15.8]} 43... f6 {[%clk 0:01:26.1]} 44. h4 {[%clk 0:00:12.1]} 44...
Ne6 {[%clk 0:01:26.2]} 45. Ke3 {[%clk 0:00:12.3]} 45... Nf4 {[%clk 0:01:27]} 46.
Bf3 {[%clk 0:00:13.1]} 46... Kc5 {[%clk 0:01:27.7]} 47. b3 {[%clk 0:00:14]}
47... Ne6 {[%clk 0:01:28]} 48. Be2 {[%clk 0:00:15]} 48... Nf4 {[%clk 0:01:27.7]}
49. Bf3 {[%clk 0:00:16.1]} 49... a5 {[%clk 0:01:27.5]} 50. Bh1 {[%clk
0:00:06.4]} 50... Ne6 {[%clk 0:01:22.2]} 51. Bf3 {[%clk 0:00:08.1]} 51... Nd4
{[%clk 0:01:23.2]} 52. Bd1 {[%clk 0:00:09.7]} 52... Ne6 {[%clk 0:01:22.7]} 53.
Bf3 {[%clk 0:00:10.5]} 53... Nf4 {[%clk 0:01:22.4]} 54. Bh1 {[%clk 0:00:12]}
54... Kb5 {[%clk 0:01:23.5]} 55. Kd2 {[%clk 0:00:12.2]} 55... Kc5 {[%clk
0:01:20]} 56. Ke3 {[%clk 0:00:13.1]} 1/2-1/2

[Event "*** Titled Tuesday 3|2 Blitz"]
[Site "Chess.com"]
[Date "2016.06.07"]
[Round "3"]
[White "flavettes"]
[Black "dondimi"]
[Result "0-1"]
[WhiteElo "2485"]
[BlackElo "2437"]
[TimeControl "180+2"]
[EndTime "11:36:41 PDT"]
[Termination "dondimi won by resignation"]

1. d4 {[%clk 0:03:01.9]} 1... Nf6 {[%clk 0:03:00.4]} 2. Nf3 {[%clk 0:03:03.4]}
2... g6 {[%clk 0:03:00.9]} 3. e3 {[%clk 0:03:04.8]} 3... Bg7 {[%clk 0:03:00.7]}
4. Be2 {[%clk 0:03:06.7]} 4... O-O {[%clk 0:03:02.3]} 5. O-O {[%clk 0:03:08.6]}
5... d5 {[%clk 0:03:01.3]} 6. b4 {[%clk 0:03:09.9]} 6... a5 {[%clk 0:03:00.4]}
7. b5 {[%clk 0:03:10.9]} 7... c5 {[%clk 0:03:00.5]} 8. bxc6 {[%clk 0:03:10.1]}
8... bxc6 {[%clk 0:03:01.1]} 9. c4 {[%clk 0:03:07]} 9... Ne4 {[%clk 0:02:58.1]}
10. Nfd2 {[%clk 0:02:59.3]} 10... c5 {[%clk 0:02:55.2]} 11. Bb2 {[%clk
0:02:41.9]} 11... Nxd2 {[%clk 0:02:55.3]} 12. Qxd2 {[%clk 0:02:36.1]} 12... dxc4
{[%clk 0:02:53.3]} 13. Bxc4 {[%clk 0:02:30.6]} 13... cxd4 {[%clk 0:02:52.4]} 14.
Bxd4 {[%clk 0:02:15.3]} 14... Bxd4 {[%clk 0:02:52.3]} 15. exd4 {[%clk
0:02:16.4]} 15... Ba6 {[%clk 0:02:51.5]} 16. Rc1 {[%clk 0:02:12.6]} 16... Bxc4
{[%clk 0:02:43.7]} 17. Rxc4 {[%clk 0:02:12.9]} 17... Nd7 {[%clk 0:02:45.6]} 18.
d5 {[%clk 0:02:05]} 18... Nb6 {[%clk 0:02:41.9]} 19. Rd4 {[%clk 0:02:06.3]}
19... Rc8 {[%clk 0:02:40.9]} 20. Nc3 {[%clk 0:02:02.2]} 20... Qc7 {[%clk
0:02:38.8]} 21. Rd3 {[%clk 0:01:57.9]} 21... Nc4 {[%clk 0:02:35.5]} 22. Qe1
{[%clk 0:01:52.4]} 22... Nd6 {[%clk 0:02:35.6]} 23. Rad1 {[%clk 0:01:50.9]}
23... Rfe8 {[%clk 0:02:27.9]} 24. h3 {[%clk 0:01:51.1]} 24... h5 {[%clk
0:02:27]} 25. Qe5 {[%clk 0:01:51.3]} 25... Nc4 {[%clk 0:02:25.4]} 26. Qe2 {[%clk
0:01:46]} 26... Qe5 {[%clk 0:02:19.6]} 27. Qc2 {[%clk 0:01:30.9]} 27... Nd6
{[%clk 0:02:16.1]} 28. Qd2 {[%clk 0:01:29.2]} 28... Rc7 {[%clk 0:02:12.1]} 29.
Re3 {[%clk 0:01:25.9]} 29... Qf4 {[%clk 0:02:08.2]} 30. Qe1 {[%clk 0:01:19.7]}
30... Rec8 {[%clk 0:01:59.1]} 31. Ne4 {[%clk 0:01:17]} 31... Nf5 {[%clk
0:01:55.8]} 32. Rf3 {[%clk 0:01:15.5]} 32... Qe5 {[%clk 0:01:53.6]} 33. Rfd3
{[%clk 0:00:45.4]} 33... Rc2 {[%clk 0:01:44.2]} 34. a3 {[%clk 0:00:45.8]} 34...
Nd6 {[%clk 0:01:35.8]} 35. Nxd6 {[%clk 0:00:41.2]} 35... Qxe1+ {[%clk
0:01:28.2]} 36. Rxe1 {[%clk 0:00:43.1]} 36... exd6 {[%clk 0:01:30]} 37. Rb1
{[%clk 0:00:40.4]} 37... Rc1+ {[%clk 0:01:27.9]} 38. Rxc1 {[%clk 0:00:40.5]}
38... Rxc1+ {[%clk 0:01:28.6]} 39. Kh2 {[%clk 0:00:42.4]} 39... Rc4 {[%clk
0:01:27.7]} 40. Kg3 {[%clk 0:00:41.8]} 40... h4+ {[%clk 0:01:26.1]} 41. Kf3
{[%clk 0:00:42.3]} 41... Kg7 {[%clk 0:01:26.8]} 42. Rb3 {[%clk 0:00:40.6]} 42...
Kf6 {[%clk 0:01:20.5]} 43. Ke3 {[%clk 0:00:35.4]} 43... Ke5 {[%clk 0:01:19.4]}
44. Rd3 {[%clk 0:00:36.6]} 44... a4 {[%clk 0:01:17]} 45. f3 {[%clk 0:00:34.7]}
45... Rc2 {[%clk 0:01:12]} 46. f4+ {[%clk 0:00:34.6]} 46... Kf5 {[%clk
0:01:10.9]} 47. Kf3 {[%clk 0:00:32.3]} 47... Rc4 {[%clk 0:01:09.7]} 48. g3
{[%clk 0:00:33.4]} 48... hxg3 {[%clk 0:01:09]} 49. Kxg3 {[%clk 0:00:35.3]} 49...
Rxf4 {[%clk 0:01:05.8]} 50. h4 {[%clk 0:00:36.7]} 50... Ke5 {[%clk 0:01:04]} 51.
Rd1 {[%clk 0:00:34.6]} 51... Rd4 {[%clk 0:00:58.7]} 52. Rf1 {[%clk 0:00:34.9]}
52... f5 {[%clk 0:00:58.5]} 53. h5 {[%clk 0:00:33.8]} 0-1